Cogmind - Beta 13 @@@ ROGUE MODE // 2024.04.03 @ 08:44:11 Player: fippe Result: Destroyed by G-47 Trooper with Particle Gun Performance ------------- Evolutions (1) 500 Regions Visited (2) 400 Robots Destroyed (36) 180 Value Destroyed (771) 771 Prototype IDs (1) 20 Alien Tech Used (0) 0 Bonus (0) 0 TOTAL SCORE: 1871 Bonus ------- None Cogmind --------- Core Integrity 0/400 Matter 279/300 Energy 280/280 System Corruption 0% Temperature Cool (28) Movement Treading (160) Location -9/Materials Parts ------- > --- POWER (1) -------- Heavy Ion Engine > --- PROPULSION (3) --- Light Treads Light Treads Light Treads > --- UTILITY (3) ------ Salvage Targeting Computer Salvage Targeting Computer Hardened Light Armor Plating > --- WEAPON (2) ------- Heavy Assault Rifle Autogun > --- INVENTORY (5) ---- Light Treads Signal Interpreter Light Armor Plating Beam Rifle Mini Grenade Launcher Peak State ------------ > --- POWER ------------ Heavy Ion Engine > --- PROPULSION ------- Light Treads Light Treads Light Treads > --- UTILITY ---------- Salvage Targeting Computer Salvage Targeting Computer Hardened Light Armor Plating > --- WEAPON ----------- Heavy Assault Rifle Autogun > --- INVENTORY -------- Signal Interpreter Light Armor Plating Beam Rifle Autogun [Rating: 16] Favorites ----------- Power Ion Engine Engine Ion Engine Propulsion Light Treads Treads Light Treads Leg Aluminum Leg Wheel Wheel Utility Salvage Targeting Computer Device Seismic Detector Processor Salvage Targeting Computer Protection Hardened Light Armor Plating Weapon Light Cannon Energy Gun Medium Laser Ballistic Gun Autogun Ballistic Cannon Light Cannon Launcher Grenade Launcher Impact Weapon Hammer Slashing Weapon Mining Claw Build | -11 -10 -9 ------- Run | Yrd Mat Mat Slots Evolved 2 | . . 2 Power . | . . . Propulsion 1 | . . 1 Utility 1 | . . 1 Weapon . | . . . Parts Attached 35 | 6 7 22 Power 5 | 1 2 2 Engine 5 | 1 2 2 Core . | . . . Reactor . | . . . Propulsion 10 | 2 . 8 Treads 3 | . . 3 Leg 4 | . . 4 Wheel 3 | 2 . 1 Hover . | . . . Flight . | . . . Utility 8 | 1 2 5 Device 5 | 1 2 2 Storage . | . . . Processor 2 | . . 2 Hackware . | . . . Protection 1 | . . 1 Artifact . | . . . Weapon 12 | 2 3 7 Energy Gun 1 | 1 . . Energy Cannon . | . . . Ballistic Gun 5 | 1 . 4 Ballistic Cannon 2 | . 2 . Launcher 1 | . . 1 Special Weapon . | . . . Impact Weapon 2 | . . 2 Slashing Weapon 1 | . 1 . Piercing Weapon . | . . . Special Melee Weapon . | . . . Unidentified Prototypes 1 | . . 1 Parts Lost 14 | . 3 11 Power 3 | . 1 2 Propulsion 4 | . 1 3 Utility 2 | . 1 1 Weapon 5 | . . 5 Highest Loss Streak 10 | . 3 10 To Critical Strikes . | . . . Average Slot Usage (%) 75 | . 80 72 Engine 7 | . 13 3 Treads 8 | . . 14 Leg 4 | . . 7 Wheel 12 | . 27 3 Device 5 | . 10 1 Processor 10 | . . 16 Protection 3 | . . 5 Ballistic Gun 10 | . 8 11 Ballistic Cannon 7 | . 13 3 Slashing Weapon 4 | . 5 3 Naked Turns . | . . . Heaviest Build 19 | 9 11 19 Greatest Support 60 | 26 26 60 Greatest Overweight (x) 1 | . . 1 Average Overweight (x) . | . . . Largest Inventory Capacity 5 | 5 5 5 Average Capacity 5 | 5 5 5 Most Carried 5 | 1 5 5 Average Carried 2 | . 2 2 Final Capacity 5 | 5 5 5 Final Carried 5 | 1 2 5 Class Distribution -------------------- 62% | Mutant 37% | Scavenger-Mutant Dominant Class ---------------- Mutant | -10/Materials Scavenger-Mutant | -9/Materials Resources | -11 -10 -9 ----------- Run | Yrd Mat Mat Matter Collected 916 | 268 90 558 Remotely . | . . . Salvage Created 1076 | 70 210 796 Parts 81 | 8 13 60 Haulers Intercepted 2 | . . 2 Recyclers Shooed 2 | 1 1 . Parts Field Recycled . | . . . Retrieved Matter . | . . . Parts Self-Destructed . | . . . Prevented . | . . . Kills | -11 -10 -9 ------- Run | Yrd Mat Mat Combat Hostiles Destroyed 22 | . 5 17 Melee 1 | . 1 . Guns 8 | . 1 7 Cannons 6 | . 2 4 AOE 6 | . 1 5 Classes Destroyed 9 | 1 4 4 Worker 2 | . . 2 Builder 1 | . . 1 Tunneler 3 | 3 . . Hauler 2 | . . 2 Recycler 2 | . 1 1 Watcher 4 | . 1 3 Swarmer 9 | . 3 6 Grunt 8 | . 2 6 Sentry 5 | . . 5 Best Kill Streak 9 | 3 4 9 Combat Bots Only 6 | . 3 6 Max Kills in Single Turn 2 | 1 2 2 Gunslinging . | . . . Exploded 2 | . 1 2 Melee 1 | . 1 . Uniques/NPCs Destroyed . | . . . Combat | -11 -10 -9 -------- Run | Yrd Mat Mat Hostile Shots Fired 188 | . 23 165 Missed 58 | . 8 50 Damage Taken 1882 | . 410 1472 Core 485 | . 77 408 Absorbed by Shields . | . . . Core Remaining (%) 84 | 100 69 . Volleys Fired 82 | 8 11 63 Largest 2 | 2 2 2 Hottest 70 | 70 55 46 Shots Fired 118 | 16 17 85 Gun 76 | 16 6 54 Cannon 28 | . 11 17 Launcher 14 | . . 14 Special . | . . . Kinetic 96 | 8 17 71 Thermal 8 | 8 . . Explosive 14 | . . 14 Electromagnetic . | . . . Robot Hit Streak 10 | 4 3 10 Robot Miss Streak 3 | 1 3 3 Penetration Max . | . . . Secondary Targets . | . . . Shots Hit Robots 84 | 10 12 62 Core Hits 51 | 5 9 37 Critical Kills . | . . . Critical Parts Destroyed 2 | . . 2 Critical Strikes 6 | 1 2 3 Burn 1 | 1 . . Blast 3 | . 2 1 Smash 2 | . . 2 Melee Attacks 17 | . 9 8 Impact 8 | . . 8 Slashing 9 | . 9 . Piercing . | . . . Sneak Attacks . | . . . Combat Hostiles . | . . . Follow-up Attacks . | . . . Damage Inflicted 2015 | 107 369 1539 Guns 777 | 107 30 640 Cannons 292 | . 128 164 Explosions 755 | . 142 613 Melee 188 | . 69 119 Ramming 3 | . . 3 Kinetic 1008 | 46 158 804 Thermal 203 | 61 142 . Explosive 613 | . . 613 Electromagnetic . | . . . Impact 119 | . . 119 Slashing 69 | . 69 . Piercing . | . . . Highest Corruption 9 | . 9 . Average Corruption 9 | . 9 . Corruption Purged . | . . . Corruption Blocked . | . . . Effects 1 | . 1 . Data Loss (minor) 1 | . 1 . Overload Shots . | . . . Overflow Damage 51 | . . 51 Projectiles . | . . . Explosions 18 | . . 18 Melee 33 | . . 33 Knockbacks 1 | . 1 . Impact . | . . . Kinetic 1 | . 1 . Secondary . | . . . Self-Inflicted Damage 28 | . . 28 Shots 1 | . . 1 Rammed 2 | . . 2 Targets Rammed 2 | . . 2 Kicked . | . . . Crushed . | . . . Highest Temperature 60 | 60 28 24 Average Temperature 17 | 30 12 8 Received Heat Transfer 492 | . 42 450 Siege Activations . | . . . Robots Corrupted . | . . . Combat Hostiles . | . . . Parts Fried . | . . . Impact Corruptions 2 | . . 2 Robots Melted . | . . . Combat Hostiles . | . . . Parts Melted 1 | 1 . . Heat Transferred 359 | 259 100 . Parts Sabotaged . | . . . Parts Stolen . | . . . Parts Stripped . | . . . Power Chain Reactions . | . . . Alert | -11 -10 -9 ------- Run | Yrd Mat Mat Peak Influence 291 | 15 286 291 Initial 23 | . 9 23 Average 154 | 4 148 180 Maximum Alert Level 1 | . 1 1 Low Security (%) 54 | 100 53 48 Level 1 45 | . 46 51 Level 2 . | . . . Level 3 . | . . . Level 4 . | . . . Level 5 . | . . . High Security . | . . . Max Security . | . . . Squads Dispatched . | . . . Investigation . | . . . Extermination . | . . . Reinforcement . | . . . Assault . | . . . Garrison . | . . . Intercept . | . . . Searches Triggered . | . . . Construction Impeded . | . . . Haulers Reinforced . | . . . Active Scanning Responses . | . . . Cargo Convoy Interrupts . | . . . Stealth | -11 -10 -9 --------- Run | Yrd Mat Mat Distress Signals 2 | . 1 1 Communications Jammed . | . . . Distress Signals . | . . . Times Spotted 31 | . 6 25 Peak Tracking Total 6 | . 3 6 Tactical Retreats . | . . . Traps | -11 -10 -9 ------- Run | Yrd Mat Mat Traps Triggered . | . . . Indirectly . | . . . Trap Hack Attempts . | . . . Triggered . | . . . Disarmed . | . . . Reprogrammed 4 | . 4 . Reused . | . . . Traps Extracted . | . . . Installed . | . . . Triggered . | . . . Machines | -11 -10 -9 ---------- Run | Yrd Mat Mat Machines Disabled 5 | . 5 . Max in Single Turn 5 | . 5 . Machines Repaired . | . . . Machines Dismantled . | . . . Machines Sabotaged . | . . . Overloaded Fab Kills . | . . . Hacking | -11 -10 -9 --------- Run | Yrd Mat Mat Machines Accessed 6 | . 5 1 Terminals 5 | . 4 1 Fabricators . | . . . Repair Stations . | . . . Recycling Units 1 | . 1 . Scanalyzers . | . . . Garrison Access . | . . . Total Hacks 22 | . 20 2 Successful 11 | . 9 2 Failed 11 | . 11 . Catastrophic 2 | . 2 . Database Lockouts . | . . . Manual 10 | . 9 1 Terminals 19 | . 17 2 Fabricators . | . . . Repair Stations . | . . . Recycling Units 3 | . 3 . Scanalyzers . | . . . Garrison Access . | . . . Terminal Hacks 10 | . 9 1 Robot Analysis 2 | . 2 . Emergency Access Points 1 | . 1 . Locate Traps 3 | . 3 . Reprogram Traps 1 | . 1 . Patrol Status 1 | . 1 . Transport Status 1 | . . 1 Hauler Manifests 1 | . 1 . Fabricator Hacks . | . . . Repair Station Hacks . | . . . Recycling Unit Hacks . | . . . Scanalyzer . | . . . Garrison Access Hacks . | . . . Unauthorized Hacks 1 | . . 1 Terminals 1 | . . 1 Assimilate 1 | . . 1 Fabricators . | . . . Repair Stations . | . . . Recycling Units . | . . . Scanalyzers . | . . . Garrison Access . | . . . Data Cores Recovered . | . . . Used . | . . . Hacking Detections 5 | . 5 . Full Trace Events . | . . . Feedback Events . | . . . Feedback Blocked . | . . . Robot Schematics Acquired . | . . . Robots Built . | . . . Authchips . | . . . Time . | . . . Total Robot Build Rating . | . . . Part Schematics Acquired . | . . . Parts Built . | . . . Authchips . | . . . Time . | . . . Total Part Build Rating . | . . . Parts Repaired . | . . . Time . | . . . Parts Recycled . | . . . Recycled Matter . | . . . Retrieved Matter . | . . . Retrieved Components . | . . . Parts Scanalyzed . | . . . Part Schematics Acquired . | . . . Parts Damaged . | . . . Bothacking | -11 -10 -9 ------------ Run | Yrd Mat Mat Used RIF Installer . | . . . Robots Hacked . | . . . Non-combat . | . . . Combat . | . . . Robot Hacks Applied . | . . . Relay Couplers Released . | . . . Fabnet Peak Effective % . | . . . Robots Rewired . | . . . Allies Hacked . | . . . Hacks Repelled . | . . . Allies | -11 -10 -9 -------- Run | Yrd Mat Mat Total Allies 1 | . . 1 Largest Group 1 | . . 1 Highest-Rated Group 10 | . . 10 Highest-Rated Ally 10 | . . 10 Total Orders . | . . . Ally Attacks . | . . . Total Damage . | . . . Kills . | . . . Allies Corrupted . | . . . Allies Melted . | . . . Intel | -11 -10 -9 ------- Run | Yrd Mat Mat Robot Analysis Total 2 | . 2 . Derelict Logs Recovered . | . . . Drone Launches . | . . . Drone Recoveries . | . . . Exploration | -11 -10 -9 ------------- Run | Yrd Mat Mat Turns Passed 1110 | 89 404 617 Spaces Moved 698 | 66 320 312 Core 30 | 5 . 25 Treads 122 | . . 122 Legs 67 | . . 67 Wheels 479 | 61 320 98 Hover . | . . . Flight . | . . . Fastest Speed 50 | 50 80 50 Average Speed 101 | 86 89 117 Slowest Speed 160 | 90 90 160 Overloaded Moves . | . . . Propulsion Burnouts . | . . . Robots Hopped . | . . . Cave-ins Triggered 1 | . 1 . Exploration Rate (%) 30 | 4 59 29 Regions Visited 2 Branch Regions . Pre-discovered Areas . | . . . Known Exits Taken . | . . . Unknown Exits Taken 2 | 1 1 . Scrap Searched . | . . . Spaces Dug 3 | . 3 . Terrain Destroyed 77 | . 34 43 Melee 3 | . 3 . Projectile . | . . . AOE 74 | . 31 43 Terrain Rammed . | . . . Walls Destroyed . | . . . Machines Disabled . | . . . Actions | -11 -10 -9 --------- Run | Yrd Mat Mat Total 952 | 80 405 467 Wait 92 | . 47 45 Move 696 | 65 319 312 Hop . | . . . Pick Up 15 | 1 6 8 Fast Attach 21 | 6 1 14 Attach 11 | . 4 7 Detach 3 | . 1 2 Swap 3 | . 2 1 Drop 10 | . 5 5 Fire 82 | 8 11 63 Melee 17 | . 9 8 Ram 2 | . . 2 Kick . | . . . Crush . | . . . Escape Stasis . | . . . Rewire . | . . . Trap . | . . . Miscellaneous . | . . . Route ------- -11/Scrapyard -10/Materials (discovered 2 exits: *Mat x2) -9/Materials History --------- Turn | Location | Event 14 | -11/Scrapyard | Discovered new exit (range 15) 90 | -11/Scrapyard | Entered Materials 216 | -10/Materials | Discovered new exit (range 12) 350 | -10/Materials | Build established: Mutant 440 | -10/Materials | Discovered new exit (range 6) 473 | -10/Materials | Crushed by falling debris 494 | -10/Materials | Entered another Materials area 494 | -9/Materials | Evolved 2 slots: Propulsion x1, Utility x1 504 | -9/Materials | Lost 3 parts (1p1n1u) 735 | -9/Materials | Core integrity fell below 50% 791 | -9/Materials | Core integrity fell below 20% 826 | -9/Materials | Lost 10 parts (1p3n1u5w) 1091 | -9/Materials | Build established: Scavenger-Mutant 1111 | -9/Materials | Destroyed by G-47 Trooper with Particle Gun Last Messages --------------- 01040_ Acquired 21 matter. 01042_ A-02 Transporter destroyed. 01043_ Acquired 7 matter. 01045_ K-01 Serf destroyed. 01046_ Acquired 7 matter. 01047_ K-01 Serf collects debris. 01052_ Acquired Prototype Engine. 01052_ Identified Hvy. Ion Engine. 01057_ A-02 Transporter destroyed. 01064_ Acquired Lgt. Treads. 01065_ Acquired 24 matter. 01070_ Dropped Autogun. 01070_ Acquired Mni. Grenade Launcher. 01092_ R-06 Scavenger destroyed. 01097_ Acquired 7 matter. 01105_ G-34 Mercenary destroyed. 01105_ K-01 Serf collects debris. 01106_ R-06 Scavenger collects Sml. Laser. 01110_ K-01 Serf collects debris. 01111_ R-06 Scavenger collects Ion Engine. Map ----- +----------------------------------------------------+ | ??????????????????????????????????????????????? | | ??????????????????????????????????????????????? | | ??????????????????????????????????????????????? | | ??????????????????????????????????????????????? | | ??????????????????????????????????????????????? | | ??????????????????????????????????????????????? | | ??????????????????????????????????????????????? | | ??????????????????????????????????????????????? | | ??????????????????????????????????????????????? | | ??????????????????????????????????????????????? | | ??????????????????????????????????????????????? | | ??????????????????????????????????????????????? | | ??????????????????????????????????????????????? | | ??????????????????????????????????????????????? | | ??????????????????????????????????????????????? | | ????????????????????####??????????????????????? | | ????????????????????# ??????????????????????? | | ????????????????????# ?????????????????????? | | ????????????????????# ""????????????????????? | | ????????????????????# """????????????????????? | | ????????????????????+ ""?????????????????????? | | ????????????????????# ""?????????????????????? | | ?????????????????????rk ??????????????????????? | | ????????????????????? uk??????????????????????? | | ????????????????# ##/######################## | | ????????????????# g @ *=%= [[] !% [* | | ????????????????+ g ######################## | | ????????????????# #??????????????????????? | | ????????????????# #??????????????????????? | | ????????????????# #??????????????????????? | | ??????????????? #??????????????????????? | | ?????????????# #??????????????????????? | | ?????????????#+# #??????????????????????? | | ???????????? ?# #??????????????????????? | | ??????????? ??# ???????????????????????? | | ??????????? ???# ???????????????????????? | | ???????????????+ ???????????????????????? | | ???????????????# ???????????????????????? | | ???????????????# ???????????????????????? | | ??????????????????#####???????????????????????? | | ??????????????????????????????????????????????? | | ??????????????????????????????????????????????? | | ??????????????????????????????????????????????? | | ??????????????????????????????????????????????? | | ??????????????????????????????????????????????? | | ??????????????????????????????????????????????? | | ??????????????????????????????????????????????? | | ??????????????????????????????????????????????? | | ??????????????????????????????????????????????? | | ??????????????????????????????????????????????? | +----------------------------------------------------+ Best States ------------- Heat Dissipation 39 Energy Generation 14 Energy Capacity 280 Matter Stores 300 Matter Capacity 300 Sight Range 16 Terrain Scan Density 10 Armor Coverage 150 Evasion (%) 50 Recoil Reduction 3 Salvage Targeting 2 Item Schematics ----------------- None Robot Schematics ------------------ None Fabricated ------------ Nothing Alien Tech Used ----------------- None Achievements -------------- None Challenges ------------ None Game ------ Seed SwarmMolecularCore Manual? 0 Play Time 00:19:01 Cumulative 13.6 hours Start 2024.04.02 @ 08:59:38 End 2024.04.03 @ 08:44:11 Sessions 2 Manual Loads 0 Difficulty Rogue Special Mode None Game No. 19 Rogue 19 Adventurer 0 Explorer 0 Win Type - Total 0 Types 0/0/0/0/0/0/0/0/0 Lore% 18 Gallery% 20 Achievement% 19 Wizard Run 0 Options --------- Layout 1 ASCII 0 Keyboard 0 Movement Mouse Keybinds 0 Fullscreen 0 Font 28/SmallcapsGlow Map View 50x35 Zoom Use 0% Tactical HUD 1 Map Filters NONE Filters NONE Steam 1 RUN: 9d8275f8-672a-4b09-b030-01b00862551a